fUSD/lending_fUSD_20240729
["ID","MTS","AMOUNT","RATE_DAILY","PERIOD"]
[333622027,1722291043942,-8576.028957,0.00011,2]
[333622028,1722291043957,-2533.34544198,0.00011,2]
[333622029,1722291043968,-699.5899999,0.00011,2]
[333622030,1722291043981,-1192.9975616,0.00011,2]
[333622031,1722291043992,-402.1328551,0.00011,2]
[333622032,1722291044003,-334.37839027,0.00011,2]
[333622033,1722291044015,-411.94805953,0.00011,2]
[333622034,1722291044027,-329.40999999,0.00011,2]
[333622035,1722291044038,-386.68142865,0.00011,2]
[333622036,1722291044051,-329.65,0.00011,2]
[333622037,1722291044064,-803.1817991,0.00011,2]
[333622038,1722291044075,-300.0,0.00011,2]
[333622039,1722291044087,-326.99393954,0.00011,2]
[333622040,1722291044100,-7490.68946234,0.00011,2]
[333622053,1722291045700,-665.03216072,0.00011,2]
[333622055,1722291045711,-838.52463132,0.00011,2]
[333622056,1722291045723,-6188.57226742,0.00011,2]
[333622065,1722291045817,-16755.37284061,0.00011,2]
[333622066,1722291045828,-5249.05671973,0.00011,2]
[333622067,1722291045839,-264.30000001,0.00011,2]
[333622068,1722291045851,-546.006,0.00011,2]
[333622069,1722291045862,-7501.06713738,0.00011,2]
[333622072,1722291045935,-948.66014233,0.00011,2]
[333622073,1722291045947,-105307.44740498,0.00011,2]
[333622921,1722292231818,-1042.92,8.219e-05,2]
[333622924,1722292231827,-92.254032,9e-05,2]
[333622928,1722292234201,-492.33258402,9e-05,2]
[333622929,1722292234254,-2352.94338398,9e-05,2]
[333622930,1722292234264,-322.507321,9.603e-05,2]
[333622931,1722292234274,-250.0,9.652e-05,2]
[333622932,1722292234283,-229.62,9.772e-05,2]
[333622933,1722292234292,-800.0,9.821e-05,2]
[333622934,1722292234302,-200.0,9.824e-05,2]
[333622935,1722292234311,-300.0,9.84e-05,2]
[333622936,1722292234322,-4226.7450778,9.841e-05,2]
[333622937,1722292234334,-1803.49340754,9.841e-05,2]
[333622938,1722292234362,-267.23393513,9.841e-05,2]
[333622948,1722292234565,-648.12882621,9.841e-05,2]
[333622950,1722292234578,-1480.21209364,9.841e-05,2]
[333622953,1722292234592,-4087.53372105,9.841e-05,2]
[333622959,1722292237868,-876.62669098,9.841e-05,2]
[333622960,1722292237879,-3597.56620416,9.841e-05,2]
[333622961,1722292237890,-1814.56851,9.841e-05,2]
[333622962,1722292237901,-579.46660205,9.841e-05,2]
[333622963,1722292237912,-4192.84493144,9.841e-05,2]
[333622964,1722292237921,-222.08749203,0.0001,2]
[333622965,1722292237932,-4113.21141485,0.0001,2]
[333622966,1722292238121,-1194.75285684,0.0001,2]
[333622967,1722292238130,-210.69154032,0.0001,2]
[333622968,1722292238139,-4475.0,0.00010041,2]
[333622969,1722292238148,-150.0,0.00010378,2]
[333622970,1722292238157,-150.0,0.00010378,2]
[333622971,1722292238167,-355.87,0.00010378,2]
[333622972,1722292238176,-4800.06294937,0.0001042,2]
[333622974,1722292238185,-1042.92,0.00010468,2]
[333622975,1722292238198,-3458.12188704,0.000107,2]
[333622976,1722292238207,-1010.46,0.00010786,2]
[333622978,1722292238216,-1010.46,0.0001079,2]
[333622979,1722292238225,-7500.0,0.00010796,2]
[333622980,1722292238234,-378.44753408,0.00010799,2]
[333622981,1722292238244,-1235.6588,0.000108,2]
[333622983,1722292238253,-20000.0,0.000108,2]
[333622985,1722292238263,-420.0,0.00010824,2]
[333622987,1722292238272,-378.44753407,0.00010824,2]
[333622989,1722292238281,-1010.46,0.00010849,2]
[333622991,1722292238292,-378.44753407,0.0001085,2]
[333622993,1722292238301,-3644.81197479,0.00010855,2]
[333622995,1722292238311,-3644.81197479,0.00010859,2]
[333622997,1722292238320,-1010.46,0.0001087,2]
[333622999,1722292238330,-1010.46,0.0001087,2]
[333623001,1722292238339,-1010.46,0.0001087,2]
[333623003,1722292238348,-1010.46,0.0001087,2]
[333623005,1722292238357,-1010.46,0.0001087,2]
[333623006,1722292238367,-1010.46,0.0001087,2]
[333623008,1722292238376,-1010.46,0.0001087,2]
[333623010,1722292238385,-378.44753407,0.00010875,2]
[333623012,1722292238395,-3644.81197479,0.00010879,2]
[333623014,1722292238404,-117526.69763262,0.0001088,2]
[333623016,1722292238416,-300.11965555,0.0001088,2]
[333623018,1722292238427,-1522.57839701,0.0001088,2]
[333623020,1722292238438,-2836.80106641,0.0001088,2]
[333623022,1722292238449,-2883.84825415,0.0001088,2]
[333623024,1722292238460,-397.56493068,0.0001088,2]
[333623026,1722292238472,-65213.74985713,0.0001088,2]
[333623028,1722292238483,-28445.57101361,0.0001088,2]
[333623053,1722292240023,-313.637495,0.0001088,2]
[333623054,1722292240152,-1107.68259837,0.0001088,2]
[333623055,1722292240182,-439.10667098,0.0001088,2]
[333623056,1722292240193,-2704.3292368,0.0001088,2]
[333623057,1722292240204,-620.65297477,0.0001088,2]
[333623058,1722292240215,-1023.25,0.0001088,2]
[333623059,1722292240241,-502.62768369,0.0001088,2]
[333623060,1722292240372,-2848.57941452,0.0001088,2]
[333623061,1722292240384,-16074.43081458,0.0001088,2]
[333623062,1722292240393,-1105.7059,0.00010884,2]
[333623063,1722292240403,-15501.2049,0.00010891,2]
[333623065,1722292240412,-11649.2467,0.00010891,2]
[333623067,1722292240421,-5690.6094,0.00010891,2]
[333623068,1722292240431,-500.0,0.00010894,2]
[333623069,1722292240440,-9807.8485,0.00010894,2]
[333623070,1722292240449,-2683.24778065,0.00010894,2]
[333623071,1722292240460,-500.0,0.00010894,2]
[333623104,1722292243842,-7476.25541935,0.00010894,2]
[333623105,1722292243851,-25099.7063,0.00010894,2]
[333623106,1722292243861,-3286.92107177,0.00010899,2]
[333623107,1722292243870,-3286.92107177,0.00010899,2]
[333623108,1722292243880,-3286.92107177,0.00010899,2]
[333623109,1722292243889,-3286.92107177,0.00010899,2]
[333623110,1722292243899,-3286.92107177,0.00010899,2]
[333623111,1722292243909,-3286.92107177,0.00010899,2]
[333623112,1722292243919,-3286.92107177,0.00010899,2]
[333623113,1722292243927,-3286.92107177,0.00010899,2]
[333623114,1722292243937,-3286.92107177,0.00010899,2]
[333623115,1722292243946,-334.5742,0.000109,2]
[333623116,1722292243956,-383.36033834,0.000109,2]
[333623117,1722292243965,-184.52049765,0.000109,2]
[333623118,1722292243974,-160.23878891,0.000109,2]
[333623119,1722292243983,-3286.92107177,0.000109,2]
[333623120,1722292243993,-959.20007468,0.000109,2]
[333623121,1722292244002,-378.44753407,0.000109,2]
[333623122,1722292244011,-220.97,0.00010904,2]
[333623123,1722292244020,-250.0,0.00010959,2]
[333623124,1722292244030,-195.86,0.00010969,2]
[333623125,1722292244039,-211.23,0.0001098,2]
[333623126,1722292244048,-332.665,0.00010989,2]
[333623127,1722292244058,-20976.6840052,0.0001099,6]
[333623128,1722292244067,-211.23,0.0001099,2]
[333623129,1722292244076,-500.0,0.00010993,2]
[333623130,1722292244085,-500.0,0.00010994,2]
[333623131,1722292244095,-500.0,0.00010994,2]
[333623132,1722292244105,-265.83193608,0.00010994,2]
[333623133,1722292244114,-500.0,0.00010994,2]
[333623134,1722292244123,-1591.180323,0.00010994,2]
[333623135,1722292244133,-272.91857153,0.00010996,2]
[333623136,1722292244142,-500.0,0.00010998,2]
[333623137,1722292244152,-500.0,0.00010998,2]
[333623138,1722292244161,-742.36440838,0.00010999,3]
[333623139,1722292244171,-516.420386,0.00010999,2]
[333623141,1722292244181,-500.99805629,0.00010999,2]
[333623142,1722292244190,-939.22,0.00010999,2]
[333623144,1722292244200,-500.0,0.00010999,2]
[333623146,1722292244209,-500.0,0.00010999,2]
[333623148,1722292244219,-500.0,0.00010999,2]
[333623149,1722292244228,-500.0,0.00010999,2]
[333623150,1722292244237,-500.0,0.00010999,2]
[333623151,1722292244247,-466.25,0.00010999,2]
[333623152,1722292244256,-193.55642863,0.00010999,2]
[333623153,1722292244266,-2256.2841538,0.00010999,2]
[333623154,1722292244275,-500.0,0.00010999,2]
[333623155,1722292244284,-500.0,0.00010999,2]
[333623156,1722292244293,-500.0,0.00010999,2]
[333623157,1722292244302,-500.0,0.00010999,2]
[333623158,1722292244311,-500.0,0.00010999,2]
[333623159,1722292244320,-500.0,0.00010999,2]
[333623160,1722292244330,-383.82594634,0.00010999,2]
[333623161,1722292244339,-526.0,0.00011,2]
[333623162,1722292244348,-175155.63745356,0.00011,2]
[333623163,1722292244360,-48987.09836178,0.00011,2]
[333623167,1722292245952,-380.34541189,0.00010422,2]
[333623168,1722292246086,-2249.10704553,0.00010422,2]
[333623169,1722292246095,-15126.06984377,0.00011,2]
[333623170,1722292246105,-272055.07371802,0.00011,2]
[333623171,1722292246116,-1702.62345,0.00011,2]
[333623172,1722292246127,-730.27883011,0.00011,2]
[333623173,1722292246263,-6317.86258978,0.00011,2]
[333623174,1722292246275,-7069.64315569,0.00011,2]
[333623175,1722292246302,-500.0,0.00011,2]
[333623176,1722292246313,-332.83,0.00011,2]
[333623177,1722292246325,-3001.3,0.00011,2]
[333623211,1722292394936,500.0,0.00025586,120]
[333623212,1722292398761,500.0,0.00026186,120]
[333623213,1722292399163,500.0,0.00026786,120]
[333623221,1722293432045,-1066.05,8.219e-05,2]
[333623222,1722293432054,-250.0,9.636e-05,2]
[333623223,1722293432063,-2034.5765886,9.738e-05,2]
[333623224,1722293432074,-764.60626949,9.738e-05,2]
[333623225,1722293432092,-254.68592052,9.738e-05,2]
[333623226,1722293432141,-9406.70292885,9.738e-05,2]
[333623227,1722293432153,-554.28354,9.738e-05,2]
[333623228,1722293432165,-3065.28778418,9.738e-05,2]
[333623229,1722293432177,-1192.81696836,9.738e-05,2]
[333623230,1722293432187,-1131.42,9.744e-05,2]
[333623231,1722293432196,-288.08744391,9.752e-05,2]
[333623232,1722293432297,-517.67,9.752e-05,2]
[333623234,1722293432309,-34.24255609,9.752e-05,2]
[333623236,1722293432318,-160.0,9.819e-05,2]
[333623238,1722293432327,-300.0,9.9e-05,3]
[333623240,1722293432337,-1060.03,9.9e-05,2]
[333623241,1722293432346,-262.19988619,9.9e-05,2]
[333623244,1722293432357,-267.99011381,9.9e-05,2]
[333623246,1722293432367,-1204.97988619,0.0001,2]
[333623274,1722293438010,-45.02011381,0.0001,2]
[333623276,1722293438020,-785.54,0.0001,2]
[333623278,1722293438030,-411.14,0.0001,2]
[333623280,1722293438039,-600.0,0.0001,3]
[333623282,1722293438048,-900.0,0.000101,3]
[333623283,1722293438057,-1200.0,0.000102,3]
[333623284,1722293438066,-1500.0,0.000103,3]
[333623285,1722293438075,-300.0,0.000104,3]
[333623286,1722293438085,-1066.05,0.00010459,2]
[333623287,1722293438095,-530.19,0.00010478,2]
[333623288,1722293438103,-530.19,0.00010478,2]
[333623289,1722293438112,-1058.76,0.00010478,2]
[333623290,1722293438121,-300.0,0.000105,3]
[333623291,1722293438134,-1810.27080819,0.00010516,2]
[333623292,1722293438143,-234.44,0.00010516,2]
[333623293,1722293438152,-234.44,0.00010516,2]
[333623294,1722293438161,-234.44,0.00010516,2]
[333623295,1722293438171,-234.44,0.00010516,2]
[333623296,1722293438180,-234.44,0.00010516,2]
[333623297,1722293438189,-234.44,0.00010516,2]
[333623298,1722293438198,-106369.0,0.00010526,2]
[333623299,1722293438207,-1325.0862,0.00010572,2]
[333623300,1722293438217,-300.0,0.000106,3]
[333623301,1722293438226,-300.0,0.000107,3]
[333623302,1722293438235,-234.44,0.0001077,2]
[333623303,1722293438244,-234.44,0.0001077,2]
[333623304,1722293438253,-16451.6145,0.0001078,2]
[333623305,1722293438262,-650.352,0.0001078,2]
[333623306,1722293438271,-17008.7328,0.0001078,2]
[333623307,1722293438280,-234.44,0.0001079,2]
[333623308,1722293438289,-2500.0,0.000108,2]
[333623309,1722293438300,-3010.4156,0.000108,2]
[333623310,1722293438309,-7500.0,0.000108,2]
[333623311,1722293438318,-600.0,0.000108,3]
[333623312,1722293438327,-234.44,0.00010889,2]
[333623313,1722293438336,-175.23433125,0.00010899,2]
[333623314,1722293438345,-981.8160501,0.00010899,2]
[333623315,1722293438354,-981.81605003,0.00010899,2]
[333623316,1722293438362,-981.81605003,0.00010899,2]
[333623317,1722293438372,-981.81605003,0.00010899,2]
[333623318,1722293438380,-981.81605003,0.00010899,2]
[333623319,1722293438390,-981.81605003,0.00010899,2]
[333623320,1722293438398,-981.81605003,0.00010899,2]
[333623321,1722293438408,-981.81605003,0.00010899,2]
[333623322,1722293438416,-981.81605003,0.00010899,2]
[333623323,1722293438426,-175.23433122,0.00010899,2]
[333623324,1722293438435,-175.23433122,0.000109,2]
[333623325,1722293438443,-2233.21503504,0.000109,2]
[333623326,1722293438453,-247.952683,0.000109,2]
[333623327,1722293438462,-20677.5662607,0.000109,2]
[333623328,1722293438479,-5700.0,0.000109,2]
[333623329,1722293438490,-519.40101988,0.000109,2]
[333623330,1722293438502,-2976.27273711,0.000109,2]
[333623331,1722293438512,-1062.80286357,0.000109,2]
[333623332,1722293438524,-686.585,0.000109,2]
[333623334,1722293438535,-642.12023881,0.000109,2]
[333623338,1722293440011,-1925.21849517,0.000109,2]
[333623339,1722293440061,-5249.09854174,0.000109,2]
[333623340,1722293440072,-316.03949113,0.000109,2]
[333623341,1722293440110,-1262.56683,0.000109,2]
[333623342,1722293440161,-133033.92792189,0.000109,2]
[333623343,1722293440170,-1000.0,0.000109,2]
[333623344,1722293440181,-10026.1118,0.000109,2]
[333623345,1722293440190,-7000.0,0.000109,2]
[333623346,1722293440200,-3745.341,0.000109,2]
[333623347,1722293440209,-349.55717461,0.000109,2]
[333623348,1722293440218,-463.87487144,0.000109,2]
[333623349,1722293440228,-175.23433122,0.000109,2]
[333623350,1722293440237,-15400.2722017,0.000109,2]
[333623351,1722293440247,-981.81605003,0.000109,2]
[333623352,1722293440256,-214.25089341,0.000109,2]
[333623353,1722293440266,-1000.0,0.000109,2]
[333623354,1722293440275,-150.63975881,0.000109,2]
[333623355,1722293440284,-500.0,0.00010912,2]
[333623356,1722293440294,-512.43860239,0.00010958,2]
[333623357,1722293440303,-500.0,0.00010958,2]
[333623358,1722293440312,-500.0,0.00010958,2]
[333623359,1722293440321,-500.0,0.00010958,2]
[333623360,1722293440330,-588.03,0.00010958,2]
[333623361,1722293440339,-500.0,0.00010958,2]
[333623362,1722293440348,-500.0,0.00010958,2]
[333623363,1722293440358,-500.0,0.00010958,2]
[333623364,1722293440367,-500.0,0.00010958,2]
[333623365,1722293440377,-500.0,0.00010958,2]
[333623366,1722293440386,-500.0,0.00010958,2]
[333623367,1722293440395,-500.0,0.00010958,2]
[333623369,1722293440405,-500.0,0.00010958,2]
[333623371,1722293440414,-500.0,0.00010958,2]
[333623372,1722293440423,-500.0,0.00010958,2]
[333623373,1722293440432,-500.0,0.00010958,2]
[333623374,1722293440441,-500.0,0.00010958,2]
[333623376,1722293440450,-500.0,0.00010958,2]
[333623378,1722293440459,-500.0,0.00010958,2]
[333623380,1722293440468,-500.0,0.00010958,2]
[333623382,1722293440477,-500.0,0.00010958,2]
[333623384,1722293440487,-500.0,0.00010958,2]
[333623386,1722293440497,-552.02,0.00010958,2]
[333623388,1722293440506,-500.0,0.00010958,2]
[333623390,1722293440515,-500.0,0.00010958,2]
[333623392,1722293440525,-500.0,0.00010958,2]
[333623394,1722293440534,-500.0,0.00010958,2]
[333623396,1722293440543,-555.68208153,0.00010958,2]
[333623397,1722293440552,-500.0,0.00010958,2]
[333623398,1722293440561,-500.0,0.00010958,2]
[333623399,1722293440570,-576.05,0.00010958,2]
[333623400,1722293440579,-500.0,0.00010958,2]
[333623401,1722293440588,-500.0,0.00010958,2]
[333623402,1722293440597,-500.0,0.00010958,2]
[333623403,1722293440607,-500.0,0.00010958,2]
[333623404,1722293440616,-500.0,0.00010958,2]
[333623405,1722293440625,-500.0,0.00010958,2]
[333623406,1722293440634,-500.0,0.00010958,2]
[333623407,1722293440643,-500.0,0.00010958,2]
[333623408,1722293440652,-500.0,0.00010958,2]
[333623409,1722293440661,-500.0,0.00010958,2]
[333623410,1722293440670,-500.0,0.00010958,2]
[333623411,1722293440680,-335.43400999,0.00010958,2]
[333623412,1722293440689,-566.62,0.00010958,2]
[333623413,1722293440699,-500.0,0.00010958,2]
[333623414,1722293440708,-500.0,0.00010958,2]
[333623415,1722293440717,-500.0,0.00010958,2]
[333623416,1722293440726,-500.0,0.00010958,2]
[333623417,1722293440931,-276.93,0.00010958,2]
[333623418,1722293440941,-500.0,0.00010958,2]
[333623419,1722293440950,-500.0,0.00010958,2]
[333623420,1722293440959,-500.0,0.00010958,2]
[333623421,1722293440968,-500.0,0.00010958,2]
[333623422,1722293440977,-500.0,0.00010958,2]
[333623423,1722293440987,-500.0,0.00010958,2]
[333623424,1722293440996,-196.25,0.00010958,2]
[333623425,1722293441005,-500.0,0.00010958,2]
[333623426,1722293441014,-500.0,0.00010958,2]
[333623427,1722293441023,-500.0,0.00010958,2]
[333623428,1722293441033,-500.0,0.00010958,2]
[333623429,1722293441042,-500.0,0.00010958,2]
[333623430,1722293441051,-500.0,0.00010958,2]
[333623431,1722293441060,-500.0,0.00010958,2]
[333623432,1722293441069,-500.0,0.00010958,2]
[333623433,1722293441078,-500.0,0.00010958,2]
[333623434,1722293441087,-500.0,0.00010958,2]
[333623435,1722293441097,-500.0,0.00010958,2]
[333623436,1722293441106,-160.61,0.00010958,2]
[333623437,1722293441116,-538.43,0.00010958,2]
[333623438,1722293441124,-500.0,0.00010958,2]
[333623439,1722293441137,-500.0,0.00010958,2]
[333623440,1722293441146,-500.0,0.00010958,2]
[333623441,1722293441156,-500.0,0.00010958,2]
[333623442,1722293441165,-571.575646,0.00010958,2]
[333623443,1722293441175,-500.0,0.00010958,2]
[333623444,1722293441184,-500.0,0.00010958,2]
[333623445,1722293441194,-204.77169774,0.00010958,2]
[333623446,1722293441203,-500.0,0.00010958,2]
[333623447,1722293441214,-500.0,0.00010958,2]
[333623448,1722293441223,-641.38,0.00010958,2]
[333623449,1722293441233,-502.19452652,0.00010958,2]
[333623450,1722293441242,-253.47874931,0.00010958,2]
[333623451,1722293441251,-500.0,0.00010958,2]
[333623452,1722293441260,-500.0,0.00010958,2]
[333623453,1722293441269,-500.0,0.00010958,2]
[333623454,1722293441279,-500.0,0.00010958,2]
[333623455,1722293441287,-458.91,0.00010958,2]
[333623456,1722293441297,-500.0,0.00010958,2]
[333623457,1722293441306,-500.0,0.00010958,2]
[333623458,1722293441316,-500.0,0.00010958,2]
[333623459,1722293441325,-500.0,0.00010958,2]
[333623460,1722293441334,-500.0,0.00010958,2]
[333623461,1722293441343,-500.0,0.00010958,2]
[333623462,1722293441352,-500.0,0.00010958,2]
[333623463,1722293441362,-500.0,0.00010958,2]
[333623464,1722293441375,-500.0,0.00010958,2]
[333623465,1722293441384,-279.52,0.00010958,2]
[333623466,1722293441393,-500.0,0.00010958,2]
[333623467,1722293441403,-500.0,0.00010958,2]
[333623468,1722293441412,-500.0,0.00010958,2]
[333623469,1722293441421,-500.0,0.00010958,2]
[333623470,1722293441430,-500.0,0.00010958,2]
[333623471,1722293441440,-588.43,0.00010958,2]
[333623472,1722293441449,-300.0,0.00010958,2]
[333623473,1722293441459,-500.0,0.00010958,2]
[333623474,1722293441468,-245.11,0.00010958,2]
[333623475,1722293441477,-500.0,0.00010958,2]
[333623476,1722293441486,-325.95693694,0.00010958,2]
[333623477,1722293441495,-500.0,0.00010958,2]
[333623478,1722293441504,-500.0,0.00010958,2]
[333623479,1722293441513,-500.0,0.00010958,2]
[333623480,1722293441522,-500.0,0.00010958,2]
[333623481,1722293441532,-500.0,0.00010958,2]
[333623482,1722293441541,-500.0,0.00010958,2]
[333623483,1722293441551,-500.0,0.00010958,2]
[333623484,1722293441560,-500.0,0.00010958,2]
[333623485,1722293441569,-500.0,0.00010958,2]
[333623486,1722293441579,-500.0,0.00010958,2]
[333623487,1722293441589,-446.93,0.00010958,2]
[333623488,1722293441598,-502.80215745,0.00010958,2]
[333623489,1722293441608,-500.0,0.00010958,2]
[333623490,1722293441618,-500.0,0.00010958,2]
[333623491,1722293441628,-500.0,0.00010958,2]
[333623492,1722293441638,-500.0,0.00010958,2]
[333623493,1722293441647,-500.0,0.00010958,2]
[333623494,1722293441657,-500.0,0.00010958,2]
[333623495,1722293441666,-500.32,0.00010958,2]
[333623496,1722293441676,-500.0,0.00010958,2]
[333623497,1722293441685,-500.0,0.00010958,2]
[333623498,1722293441695,-500.0,0.00010958,2]
[333623499,1722293441705,-500.0,0.00010958,2]
[333623500,1722293441715,-500.0,0.00010958,2]
[333623501,1722293441725,-274.17,0.00010958,2]
[333623502,1722293441734,-500.0,0.00010958,2]
[333623503,1722293441744,-500.0,0.00010958,2]
[333623504,1722293441753,-500.0,0.00010958,2]
[333623505,1722293441763,-500.0,0.00010958,2]
[333623506,1722293441772,-500.0,0.00010958,2]
[333623507,1722293441782,-500.0,0.00010958,2]
[333623508,1722293441791,-500.0,0.00010958,2]
[333623509,1722293441801,-627.17,0.00010958,2]
[333623510,1722293441810,-500.0,0.00010958,2]
[333623511,1722293441820,-504.95239398,0.00010958,2]
[333623512,1722293441829,-500.0,0.00010958,2]
[333623513,1722293441839,-500.0,0.00010958,2]
[333623514,1722293441848,-500.0,0.00010958,2]
[333623515,1722293441858,-500.0,0.00010958,2]
[333623516,1722293441867,-500.0,0.00010958,2]
[333623517,1722293441877,-500.0,0.00010958,2]
[333623518,1722293441887,-500.0,0.00010958,2]
[333623519,1722293441896,-500.0,0.00010958,2]
[333623520,1722293441905,-500.0,0.00010958,2]
[333623521,1722293441915,-500.0,0.00010958,2]
[333623522,1722293441924,-500.0,0.00010958,2]
[333623523,1722293441933,-500.0,0.00010958,2]
[333623524,1722293441943,-500.0,0.00010958,2]
[333623525,1722293441952,-500.0,0.00010958,2]
[333623526,1722293441962,-500.0,0.00010958,2]
[333623527,1722293441971,-582.81,0.00010958,2]
[333623528,1722293441980,-500.0,0.00010958,2]
[333623529,1722293441990,-500.0,0.00010958,2]
[333623530,1722293441999,-532.79,0.00010958,2]
[333623531,1722293442008,-497.52053079,0.00010958,2]
[333623532,1722293442018,-500.0,0.00010958,2]
[333623533,1722293442027,-507.43143503,0.00010958,2]
[333623534,1722293442035,-500.0,0.00010958,2]
[333623535,1722293442045,-500.0,0.00010958,2]
[333623536,1722293442054,-500.0,0.00010958,2]
[333623537,1722293442063,-500.0,0.00010958,2]
[333623538,1722293442072,-500.0,0.00010958,2]
[333623539,1722293442082,-500.0,0.00010958,2]
[333623540,1722293442091,-500.0,0.00010958,2]
[333623541,1722293442100,-500.0,0.00010958,2]
[333623542,1722293442110,-500.0,0.00010958,2]
[333623543,1722293442119,-500.0,0.00010958,2]
[333623544,1722293442129,-500.0,0.00010958,2]
[333623545,1722293442143,-500.0,0.00010958,2]
[333623546,1722293442152,-500.0,0.00010958,2]
[333623547,1722293442161,-500.0,0.00010958,2]
[333623548,1722293442171,-500.0,0.00010958,2]
[333623549,1722293442181,-500.0,0.00010958,2]
[333623550,1722293442190,-562.44,0.00010958,2]
[333623551,1722293442199,-500.0,0.00010958,2]
[333623552,1722293442211,-500.0,0.00010958,2]
[333623553,1722293442221,-500.0,0.00010958,2]
[333623554,1722293442230,-500.0,0.00010958,2]
[333623555,1722293442239,-500.0,0.00010958,2]
[333623556,1722293442248,-500.0,0.00010958,2]
[333623557,1722293442258,-500.0,0.00010958,2]
[333623558,1722293442267,-450.78390013,0.00010958,2]
[333623559,1722293442278,-500.0,0.00010958,2]
[333623560,1722293442288,-351.02,0.00010958,2]
[333623561,1722293442297,-500.0,0.00010958,2]
[333623562,1722293442306,-500.0,0.00010958,2]
[333623563,1722293442318,-500.0,0.00010958,2]
[333623564,1722293442327,-500.0,0.00010958,2]
[333623565,1722293442337,-500.0,0.00010958,2]
[333623566,1722293442346,-500.0,0.00010958,2]
[333623567,1722293442356,-354.61,0.00010958,2]
[333623568,1722293442365,-502.57001717,0.00010958,2]
[333623569,1722293442375,-500.0,0.00010958,2]
[333623570,1722293442384,-500.0,0.00010958,2]
[333623571,1722293442393,-504.64260848,0.00010958,2]
[333623572,1722293442402,-500.0,0.00010958,2]
[333623573,1722293442412,-500.0,0.00010958,2]
[333623574,1722293442421,-500.0,0.00010958,2]
[333623575,1722293442430,-500.0,0.00010958,2]
[333623576,1722293442439,-500.0,0.00010958,2]
[333623577,1722293442448,-500.0,0.00010958,2]
[333623578,1722293442457,-500.0,0.00010958,2]
[333623579,1722293442466,-500.0,0.00010958,2]
[333623580,1722293442476,-500.0,0.00010958,2]
[333623581,1722293442485,-500.0,0.00010958,2]
[333623582,1722293442494,-561.58,0.00010958,2]
[333623583,1722293442503,-500.0,0.00010958,2]
[333623584,1722293442512,-500.0,0.00010958,2]
[333623585,1722293442522,-500.0,0.00010958,2]
[333623586,1722293442533,-500.0,0.00010958,2]
[333623587,1722293442542,-500.0,0.00010958,2]
[333623588,1722293442552,-500.0,0.00010958,2]
[333623589,1722293442561,-500.0,0.00010958,2]
[333623590,1722293442570,-500.0,0.00010958,2]
[333623591,1722293442579,-500.0,0.00010958,2]
[333623592,1722293442588,-500.0,0.00010958,2]
[333623593,1722293442597,-500.0,0.00010958,2]
[333623594,1722293442607,-500.0,0.00010958,2]
[333623595,1722293442616,-500.0,0.00010958,2]
[333623596,1722293442625,-500.0,0.00010958,2]
[333623597,1722293442634,-500.0,0.00010958,2]
[333623598,1722293442643,-500.0,0.00010958,2]
[333623599,1722293442652,-500.0,0.00010958,2]
[333623600,1722293442662,-500.0,0.00010958,2]
[333623601,1722293442671,-500.0,0.00010958,2]
[333623602,1722293442681,-500.0,0.00010958,2]
[333623603,1722293442690,-500.0,0.00010958,2]